Cogmind - Beta 14 @@@ ROGUE MODE // 2024.11.14 @ 22:36:33 Player: BEEEEES Result: Destroyed by Y-45 Defender with Heavy Assault Rifle Performance ------------- Evolutions (1) 500 Regions Visited (3) 600 Robots Destroyed (32) 160 Value Destroyed (906) 906 Prototype IDs (0) 0 Alien Tech Used (0) 0 Bonus (16) 16 TOTAL SCORE: 2182 Bonus ------- High Alert Combat Kills 16 Cogmind --------- Core Integrity 0/400 Matter 252/300 Energy 91/100 System Corruption 2% Temperature Warning (360) Movement Walking (120) Location -9/Storage Parts ------- > --- POWER (1) -------- (None) > --- PROPULSION (2) --- Aluminum Leg Aluminum Leg > --- UTILITY (2) ------ Medium Storage Unit Light Armor Plating > --- WEAPON (4) ------- Small Laser Particle Gun Heavy Assault Rifle > --- INVENTORY (10) --- Light Ion Engine Light Ion Engine Aluminum Leg Aluminum Leg Aluminum Leg Improved Targeting Computer Mini Grenade Launcher Mini Grenade Launcher Peak State ------------ > --- POWER ------------ Light Ion Engine > --- PROPULSION ------- Improved Aluminum Leg Improved Aluminum Leg > --- UTILITY ---------- Medium Storage Unit Signal Interpreter > --- WEAPON ----------- EM Pulse Gun Autogun Autogun Autogun > --- INVENTORY -------- Light Ion Engine Light Ion Engine Aluminum Leg Aluminum Leg Improved Targeting Computer Light Armor Plating Medium Laser Particle Cannon Particle Cannon Autogun [Rating: 15] Favorites ----------- Power Light Ion Engine Engine Light Ion Engine Propulsion Aluminum Leg Leg Aluminum Leg Utility Medium Storage Unit Storage Medium Storage Unit Processor Signal Interpreter Protection Light Armor Plating Weapon Autogun Energy Gun EM Pulse Gun Ballistic Gun Autogun Launcher Mini Grenade Launcher Build | -11 -10 -9 -9 ------- Run | Yrd Mat Mat Sto Slots Evolved 2 | . . 2 . Power . | . . . . Propulsion . | . . . . Utility . | . . . . Weapon 2 | . . 2 . Parts Attached 24 | 6 3 4 11 Power 1 | 1 . . . Engine 1 | 1 . . . Core . | . . . . Reactor . | . . . . Propulsion 6 | 2 . . 4 Treads . | . . . . Leg 6 | 2 . . 4 Wheel . | . . . . Hover . | . . . . Flight . | . . . . Utility 5 | 1 2 1 1 Device . | . . . . Storage 2 | 1 1 . . Processor 2 | . 1 1 . Hackware . | . . . . Protection 1 | . . . 1 Artifact . | . . . . Weapon 12 | 2 1 3 6 Energy Gun 5 | 2 . 1 2 Energy Cannon . | . . . . Ballistic Gun 5 | . 1 2 2 Ballistic Cannon . | . . . . Launcher 2 | . . . 2 Special Weapon . | . . . . Impact Weapon . | . . . . Slashing Weapon . | . . . . Piercing Weapon . | . . . . Special Melee Weapon . | . . . . Unidentified Prototypes . | . . . . Parts Lost 9 | . . . 9 Power 1 | . . . 1 Propulsion 2 | . . . 2 Utility 1 | . . . 1 Weapon 5 | . . . 5 Highest Loss Streak 8 | . . . 8 To Critical Strikes . | . . . . Average Slot Usage (%) 93 | . 92 98 90 Engine 10 | . 14 11 7 Leg 22 | . 28 22 20 Storage 11 | . 14 11 11 Processor 8 | . 7 11 8 Protection 1 | . . . 2 Energy Gun 11 | . 16 11 9 Ballistic Gun 26 | . 11 31 29 Peak Build Rating 15 | 6 10 14 15 Average Rating 11 | 4 8 13 12 On Entrance 7 | . 6 10 13 Naked Turns . | . . . . Heaviest Build 24 | 12 18 24 24 Greatest Support 26 | 20 20 20 26 Greatest Overweight (x) 5 | 3 . 1 5 Average Overweight (x) . | . . . . Largest Inventory Capacity 10 | 8 10 10 10 Average Capacity 9 | 7 8 10 10 Most Carried 10 | 5 8 10 10 Average Carried 8 | 3 6 8 8 Final Capacity 10 | 8 10 10 10 Final Carried 9 | 5 7 9 8 Class Distribution -------------------- 39% | Mutant 37% | Gunner 18% | Skirmisher 5% | Scavenger-Tank Dominant Class ---------------- Mutant | -10/Materials Skirmisher | -9/Materials Gunner | -9/Storage Resources | -11 -10 -9 -9 ----------- Run | Yrd Mat Mat Sto Matter Collected 966 | 260 30 145 531 Remotely . | . . . . Salvage Created 1335 | 82 61 214 978 Parts 78 | 4 10 11 53 Haulers Intercepted 3 | . . . 3 Recyclers Shooed 2 | . . . 2 Parts Field Recycled . | . . . . Retrieved Matter . | . . . . Parts Self-Destructed . | . . . . Prevented . | . . . . Kills | -11 -10 -9 -9 ------- Run | Yrd Mat Mat Sto Combat Hostiles Destroyed 21 | . 1 4 16 Guns 20 | . 1 4 15 AOE 1 | . . . 1 Classes Destroyed 7 | 1 2 2 2 Worker 3 | . . 1 2 Builder 1 | . . . 1 Hauler 3 | . . . 3 Recycler 1 | 1 . . . Watcher 3 | . 2 . 1 Grunt 13 | . 1 2 10 Sentry 8 | . . 2 6 Best Kill Streak 6 | 1 2 2 6 Combat Bots Only 6 | . 1 2 6 Max Kills in Single Turn 2 | 1 1 1 2 Gunslinging . | . . . . Exploded 1 | . . . 1 Melee . | . . . . Uniques/NPCs Destroyed . | . . . . Combat | -11 -10 -9 -9 -------- Run | Yrd Mat Mat Sto Hostile Shots Fired 138 | . 4 6 128 Missed 35 | . 1 4 30 Damage Taken 1751 | . 34 25 1692 Core 426 | . 23 . 403 Absorbed by Shields . | . . . . Core Remaining (%) 95 | 100 90 . . Volleys Fired 73 | 2 6 9 56 Largest 4 | 2 2 4 4 Hottest 151 | 100 100 109 151 Shots Fired 225 | 4 12 36 173 Gun 225 | 4 12 36 173 Cannon . | . . . . Launcher . | . . . . Special . | . . . . Kinetic 163 | . 3 27 133 Thermal 24 | 4 9 . 11 Explosive . | . . . . Electromagnetic 38 | . . 9 29 Robot Hit Streak 8 | 2 4 8 8 Robot Miss Streak 4 | 1 2 4 4 Penetration Max . | . . . . Secondary Targets 6 | . . 1 5 Max Gunslinging Chain 1 | . . 1 1 Shots Hit Robots 138 | 3 6 20 109 Core Hits 54 | 2 4 8 40 Critical Kills 1 | . . . 1 Critical Parts Destroyed . | . . . . Critical Strikes 3 | . 1 1 1 Burn 1 | . 1 . . Destroy 1 | . . . 1 Corrupt 1 | . . 1 . Melee Attacks . | . . . . Impact . | . . . . Slashing . | . . . . Piercing . | . . . . Sneak Attacks . | . . . . Combat Hostiles . | . . . . Follow-up Attacks . | . . . . Damage Inflicted 2253 | 37 78 259 1879 Guns 2051 | 37 78 259 1677 Cannons . | . . . . Explosions 202 | . . . 202 Melee . | . . . . Ramming . | . . . . Kinetic 1545 | . 27 200 1318 Thermal 251 | 37 51 . 163 Explosive 120 | . . . 120 Electromagnetic 337 | . . 59 278 Impact . | . . . . Slashing . | . . . . Piercing . | . . . . Highest Corruption 2 | . . . 2 Average Corruption 1 | . . . 1 Corruption Purged . | . . . . Corruption Blocked . | . . . . Effects 4 | . . . 4 Message Errors 1 | . . . 1 Matter Fused 1 | . . . 1 Heat Flow Errors 1 | . . . 1 Data Loss (minor) 1 | . . . 1 Overload Shots . | . . . . Overflow Damage . | . . . . Projectiles . | . . . . Explosions . | . . . . Melee . | . . . . Knockbacks . | . . . . Impact . | . . . . Kinetic . | . . . . Secondary . | . . . . Self-Inflicted Damage 97 | . . . 97 Shots 2 | . . . 2 Rammed . | . . . . Targets Rammed . | . . . . Kicked . | . . . . Crushed . | . . . . Highest Temperature 346 | 78 129 149 346 Average Temperature 111 | 43 56 57 133 Received Heat Transfer 636 | . 18 15 603 Effects 3 | . . . 3 Interference 3 | . . . 3 Siege Activations . | . . . . Robots Corrupted . | . . . . Combat Hostiles . | . . . . Parts Fried . | . . . . Impact Corruptions . | . . . . Robots Melted . | . . . . Combat Hostiles . | . . . . Parts Melted . | . . . . Heat Transferred 620 | 111 222 . 287 Parts Sabotaged . | . . . . Parts Stolen . | . . . . Parts Stripped . | . . . . Power Chain Reactions 1 | . . . 1 Alert | -11 -10 -9 -9 ------- Run | Yrd Mat Mat Sto Peak Influence 467 | 5 71 180 467 Initial 76 | . 3 29 76 Average 142 | 2 49 112 217 Maximum Alert Level 2 | . . . 2 Low Security (%) 75 | 100 100 100 47 Level 1 23 | . . . 49 Level 2 1 | . . . 3 Level 3 . | . . . . Level 4 . | . . . . Level 5 . | . . . . High Security . | . . . . Max Security . | . . . . Squads Dispatched 5 | . . . 5 Investigation 3 | . . . 3 Extermination . | . . . . Reinforcement 1 | . . . 1 Assault . | . . . . Garrison 1 | . . . 1 Intercept . | . . . . Searches Triggered . | . . . . Construction Impeded . | . . . . Haulers Reinforced . | . . . . Active Scanning Responses . | . . . . Cargo Convoy Interrupts . | . . . . Stealth | -11 -10 -9 -9 --------- Run | Yrd Mat Mat Sto Distress Signals 1 | . . . 1 Communications Jammed . | . . . . Distress Signals . | . . . . Times Spotted 33 | . 3 6 24 Peak Tracking Total 5 | . 2 3 5 Tactical Retreats 3 | . . . 3 Traps | -11 -10 -9 -9 ------- Run | Yrd Mat Mat Sto Traps Triggered 3 | . . . 3 Indirectly . | . . . . Trap Hack Attempts . | . . . . Triggered . | . . . . Disarmed . | . . . . Reprogrammed 1 | . . . 1 Reused . | . . . . Traps Extracted . | . . . . Installed . | . . . . Triggered . | . . . . Machines | -11 -10 -9 -9 ---------- Run | Yrd Mat Mat Sto Machines Disabled 1 | . . . 1 Max in Single Turn 1 | . . . 1 Machines Repaired . | . . . . Machines Dismantled . | . . . . Machines Sabotaged . | . . . . Overloaded Fab Kills . | . . . . Hacking | -11 -10 -9 -9 --------- Run | Yrd Mat Mat Sto Machines Accessed 9 | . 1 2 6 Terminals 8 | . 1 1 6 Fabricators . | . . . . Repair Stations . | . . . . Recycling Units 1 | . . 1 . Scanalyzers . | . . . . Garrison Access . | . . . . Total Hacks 17 | . 2 3 12 Successful 8 | . 1 . 7 Failed 9 | . 1 3 5 Catastrophic 1 | . . . 1 Database Lockouts . | . . . . Manual . | . . . . Terminals 15 | . 2 1 12 Fabricators . | . . . . Repair Stations . | . . . . Recycling Units 2 | . . 2 . Scanalyzers . | . . . . Garrison Access . | . . . . Terminal Hacks 8 | . 1 . 7 Open Door 1 | . . . 1 Locate Traps 4 | . 1 . 3 Reprogram Traps 1 | . . . 1 Hauler Manifests 1 | . . . 1 Zone Layout 1 | . . . 1 Fabricator Hacks . | . . . . Repair Station Hacks . | . . . . Recycling Unit Hacks . | . . . . Scanalyzer . | . . . . Garrison Access Hacks . | . . . . Unauthorized Hacks . | . . . . Terminals . | . . . . Fabricators . | . . . . Repair Stations . | . . . . Recycling Units . | . . . . Scanalyzers . | . . . . Garrison Access . | . . . . Data Cores Recovered . | . . . . Used . | . . . . Hacking Detections 5 | . 1 1 3 Full Trace Events 1 | . . . 1 Feedback Events . | . . . . Feedback Blocked . | . . . . Robot Schematics Acquired . | . . . . Robots Built . | . . . . Authchips . | . . . . Time . | . . . . Total Robot Build Rating . | . . . . Part Schematics Acquired . | . . . . Parts Built . | . . . . Authchips . | . . . . Time . | . . . . Total Part Build Rating . | . . . . Parts Repaired . | . . . . Time . | . . . . Parts Recycled . | . . . . Recycled Matter . | . . . . Retrieved Matter . | . . . . Retrieved Components . | . . . . Parts Scanalyzed . | . . . . Part Schematics Acquired . | . . . . Parts Damaged . | . . . . Bothacking | -11 -10 -9 -9 ------------ Run | Yrd Mat Mat Sto Used RIF Installer . | . . . . Robots Hacked . | . . . . Non-combat . | . . . . Combat . | . . . . Robot Hacks Applied . | . . . . Relay Couplers Released . | . . . . Fabnet Peak Effective % . | . . . . Robots Rewired . | . . . . Allies Hacked . | . . . . Hacks Repelled . | . . . . Allies | -11 -10 -9 -9 -------- Run | Yrd Mat Mat Sto Total Allies . | . . . . Largest Group . | . . . . Highest-Rated Group . | . . . . Highest-Rated Ally . | . . . . Total Orders . | . . . . Ally Attacks . | . . . . Total Damage . | . . . . Kills . | . . . . Allies Corrupted . | . . . . Allies Melted . | . . . . Intel | -11 -10 -9 -9 ------- Run | Yrd Mat Mat Sto Robot Analysis Total . | . . . . Derelict Logs Recovered . | . . . . Drone Launches . | . . . . Drone Recoveries . | . . . . Exploration | -11 -10 -9 -9 ------------- Run | Yrd Mat Mat Sto Turns Passed 1518 | 92 313 399 714 Spaces Moved 824 | 51 235 189 349 Core 9 | 8 . . 1 Treads . | . . . . Legs 815 | 43 235 189 348 Wheels . | . . . . Hover . | . . . . Flight . | . . . . Fastest Speed 50 | 50 120 120 120 Average Speed 146 | 141 120 183 145 Slowest Speed 300 | 200 120 190 300 Overloaded Moves . | . . . . Propulsion Burnouts . | . . . . Robots Hopped . | . . . . Cave-ins Triggered 4 | . . . 4 Exploration Rate (%) 27 | 4 35 11 61 Regions Visited 3 Branch Regions 1 Pre-discovered Areas . | . . . . Known Exits Taken 1 | . . 1 . Unknown Exits Taken 2 | 1 1 . . Scrap Searched . | . . . . Spaces Dug . | . . . . Terrain Destroyed 16 | . . . 16 Melee . | . . . . Projectile . | . . . . AOE 16 | . . . 16 Terrain Rammed . | . . . . Walls Destroyed . | . . . . Machines Disabled . | . . . . Actions | -11 -10 -9 -9 --------- Run | Yrd Mat Mat Sto Total 996 | 63 255 224 454 Wait 43 | . 4 16 23 Move 821 | 50 234 188 349 Hop . | . . . . Pick Up 23 | 5 4 6 8 Fast Attach 9 | 6 2 . 1 Attach 10 | . . 2 8 Detach 2 | . . . 2 Swap 5 | . 1 2 2 Drop 10 | . 4 1 5 Fire 73 | 2 6 9 56 Melee . | . . . . Ram . | . . . . Kick . | . . . . Crush . | . . . . Escape Stasis . | . . . . Rewire . | . . . . Trap . | . . . . Miscellaneous . | . . . . Route ------- -11/Scrapyard -10/Materials (discovered 2 exits: *Mat / [*Min]) -9/Materials (discovered 3 exits: *Min / *Sto x2) -9/Storage (discovered 1 exit: [Mat]) History --------- Turn | Location | Event 9 | -11/Scrapyard | Discovered new exit (range 15) 93 | -11/Scrapyard | Entered Materials 132 | -10/Materials | Discovered new exit (range 16) 301 | -10/Materials | Build established: Mutant 401 | -10/Materials | Discovered new exit (range 4) 406 | -10/Materials | Entered another Materials area 406 | -9/Materials | Evolved 2 slots: Weapon x2 406 | -9/Materials | Discovered new exit (range 15) 465 | -9/Materials | Discovered new exit (range 15) 616 | -9/Materials | Discovered new exit (range 17) 735 | -9/Materials | Identified exit to Storage 774 | -9/Materials | Identified exit to Mines 805 | -9/Materials | Entered Storage 1009 | -9/Storage | Build established: Gunner 1312 | -9/Storage | Crushed by falling debris 1318 | -9/Storage | Core integrity fell below 50% 1326 | -9/Storage | Crushed by falling debris 1338 | -9/Storage | Crushed by falling debris 1342 | -9/Storage | Crushed by falling debris 1342 | -9/Storage | Core integrity fell below 20% 1369 | -9/Storage | Lost 8 parts (1p2n1u4w) 1406 | -9/Storage | Discovered new exit (range 9) 1500 | -9/Storage | Garrison activated, responded to threat 1519 | -9/Storage | Destroyed by Y-45 Defender with Heavy Assault Rifle Last Messages --------------- G-34 Mercenary calls for garrison reinforcements. ALERT: Activating Garrison Access S001. K-01 Serf cleans the Transfer Shaft. U-05 Engineer lays Concrete. K-01 Serf cleans the Transfer Shaft. G-34 Mercenary destroyed. Switching to secondary target: Y-45 Defender. Overheating: System interference. Hvy. Assault Rifle temporarily disabled. Particle Gun temporarily disabled. Hvy. Assault Rifle temporarily disabled. U-05 Engineer lays Concrete. K-01 Serf collects debris. G-34 Mercenary destroyed. Switching to secondary target: G-34 Mercenary. K-01 Serf collects debris. Hvy. Assault Rifle destroyed. K-01 Serf cleans the Transfer Shaft. K-01 Serf collects debris. Map ----- +----------------------------------------------------+ | ???????????????######## ####### | | ???????????????# T !!==] ] | | ???????????????# ####### | | ???????????????# ######## | | ???????????????# !!! + | | ??????????###### !! ## | | ??????????# T## """ !! # | | ????#####?# + """ # | | ????# #?# # """ ## | | ????# < #?# # #### | | ????# #?# ## | | ????# #?######% ########+## | | ????# #??????#+##+###??# # | | ????# #??????# #??# # | | ????# #??????# #### # | | ????# #??????# + ## # | | ????# #??????# # ## # | | ????# #??????# # ##+#### # | | ????# ######## # # | | ????# ######T#+###### # | | ????# ### " # ###### # | | ????# ### " # # | | ????# #????" + # | | ????# g[#????### # | | ????# g%######## ######+#### # | | ????# =@ Y %u #?????????+ # | | ????# #?????????#### # | | ????# k #????????????? # | | ????# """ """ #??????????????# | | ????# """ """ #??????????????? | | ????# """ """ #??????????????? | | ????# #??????????????? | | ????# #??????????????? | | ????# """ """ #??????????????? | | ????# """ """ #??????????????? | | ????# """ """ ??????????????? | | ????# ?? ? ??????????????? | | ????# ??? ? ??????????????? | | ????##???#"Y"?####??????????????? | | ??????????"""???????????????????? | | ????????????????????????????????? | | ????????????????????????????????? | | ????????????????????????????????? | | ????????????????????????????????? | | ????????????????????????????????? | | ????????????????????????????????? | | ????????????????????????????????? | | ????????????????????????????????? | | ????????????????????????????????? | | ????????????????????????????????? | +----------------------------------------------------+ Best States ------------- Heat Dissipation 28 Energy Generation 10 Energy Capacity 125 Matter Stores 300 Matter Capacity 300 Sight Range 18 Terrain Scan Density 10 Armor Coverage 150 Evasion (%) 55 Item Schematics ----------------- None Robot Schematics ------------------ None Fabricated ------------ Nothing Alien Tech Used ----------------- None Achievements -------------- None Challenges ------------ None Game ------ Seed WeightWarpSubcomponent Manual? 0 Play Time 00:24:13 Cumulative 5.8 hours Start 2024.11.14 @ 22:13:59 End 2024.11.14 @ 22:36:33 Sessions 1 Manual Loads 0 Difficulty Rogue Special Mode None Game No. 12 Rogue 9 Adventurer 3 Explorer 0 Win Type - Total 0 Types 0/0/0/0/0/0/0/0/0 Lore% 3 Gallery% 11 Achievement% 10 Wizard Run 0 Options --------- Layout 1 ASCII 0 Keyboard 0 Movement Mouse Keybinds 0 Fullscreen 1 Font 48/Terminus Map View 50x35 Zoom Use 0% Tactical HUD 0 Map Filters NONE Filters NONE Steam 1 RUN: 0cbb48bb-db95-40f6-a9d8-25df2166a00a